bitfinex-derivatives/quotes_ETHF0:USTF0_20260121
["timestamp","ask_amount","ask_price","bid_price","bid_amount"]
[1768960033471,1.30115747,2970.9,2969.1,3.49150912]
[1768960033674,0.97627565,2970.8,2969.1,3.49150912]
[1768960033864,3.8226571,2971.0,2969.3,3.49150912]
[1768960034065,1.30107837,2970.9,2969.3,3.49150912]
[1768960034266,0.97619689,2970.8,2969.3,3.49150912]
[1768960034463,3.8226571,2971.0,2969.3,3.49150912]
[1768960034668,1.30108915,2970.9,2969.3,3.49150912]
[1768960034870,0.97620501,2970.8,2969.3,3.49150912]
[1768960035074,3.8226571,2971.0,2969.3,3.49150912]
[1768960035375,1.30114935,2970.9,2969.3,3.49150912]
[1768960035576,3.8226571,2971.0,2969.3,3.49150912]
[1768960035775,1.30110226,2970.9,2969.3,3.49150912]
[1768960035975,3.8226571,2971.0,2969.3,3.49150912]
[1768960036176,3.34780777,2970.8,2969.3,5.45050912]
[1768960037676,3.34780777,2970.8,2969.3,3.49150912]
[1768960037875,3.34780777,2970.8,2969.3,5.45050912]
[1768960039177,3.34780777,2970.8,2969.4,1.959]
[1768960039775,3.34780777,2970.8,2969.4,2.825]
[1768960044676,3.34780777,2970.8,2969.5,1.958]
[1768960044878,3.34780777,2970.8,2969.6,1.36234921]
[1768960046680,3.35192777,2971.3,2970.4,1.36234921]
[1768960047174,0.00412,2971.3,2970.4,1.36234921]
[1768960047684,0.00412,2971.3,2970.6,1.36234921]
[1768960048985,0.16843,2972.0,2971.0,1.36234921]
[1768960049188,0.32510393,2971.9,2971.0,1.36234921]
[1768960049484,3.34780777,2972.1,2971.0,1.36234921]
[1768960050078,3.35131117,2972.1,2971.0,1.36479018]
[1768960052679,4.71015698,2971.7,2971.0,0.00244097]
[1768960052880,3.34780777,2971.6,2970.5,1.958]
[1768960053789,3.34780777,2971.6,2970.6,1.36234921]
[1768960060388,1.36234921,2971.9,2970.6,1.36234921]
[1768960061294,4.71015698,2971.9,2970.6,1.36234921]
[1768960064596,3.34780777,2971.9,2970.8,1.36234921]
[1768960064791,0.0035034,2972.1,2971.0,1.36234921]
[1768960068795,3.62489494,2972.0,2970.8,1.36234921]
[1768960068992,3.62489494,2971.6,2970.6,0.866]
[1768960070802,3.62489494,2971.4,2970.6,0.866]
[1768960071104,3.62489494,2971.4,2970.5,0.00392585]
[1768960073495,0.0035034,2972.1,2971.3,1.36234921]
[1768960073703,0.0035034,2972.1,2971.1,1.36234921]
[1768960075009,1.36585261,2972.1,2970.8,0.16849]
[1768960075209,3.62489494,2972.0,2970.8,2.12449]
[1768960075798,3.62489494,2972.0,2970.9,1.36234921]
[1768960076009,0.0035034,2972.1,2971.1,1.36234921]
[1768960079615,0.0035034,2972.1,2970.9,1.36234921]
[1768960079809,0.0035034,2972.1,2971.0,1.956]
[1768960080005,4.99074755,2972.1,2970.7,1.36234921]
[1768960080202,3.62489494,2972.0,2970.8,1.956]
[1768960081114,3.62489494,2971.8,2970.7,0.866]
[1768960081412,4.98724415,2971.7,2970.5,0.00392585]
[1768960081713,3.62489494,2971.6,2970.5,0.00392585]
[1768960083107,3.62489494,2972.0,2970.5,0.00392585]
[1768960083413,3.62489494,2971.8,2970.5,0.00392585]
[1768960084412,0.0035034,2972.1,2970.5,3.38536278]
[1768960085006,0.0035034,2972.1,2970.5,3.55387278]
[1768960085208,3.62839834,2972.1,2970.5,0.17243585]
[1768960085508,3.62489494,2971.9,2970.6,1.956]
[1768960085711,3.62489494,2971.9,2970.5,3.54143585]
[1768960085712,3.62489494,2971.9,2970.5,0.17243585]
[1768960085919,3.62489494,2971.9,2970.5,1.95992585]
[1768960086318,3.62489494,2971.7,2970.5,0.00392585]
[1768960088918,0.0035034,2972.1,2970.5,3.38536278]
[1768960089517,0.0035034,2972.1,2970.6,3.54993693]
[1768960092225,0.0035034,2972.1,2970.7,3.54993693]
[1768960092418,0.0035034,2972.1,2970.7,4.41593693]
[1768960092622,0.0035034,2972.1,2970.9,3.54991693]
[1768960093418,0.0035034,2972.1,2971.1,3.38143693]
[1768960093723,3.62489494,2973.0,2971.3,3.38143693]
[1768960093924,1.30000241,2972.9,2971.3,3.38143693]
[1768960094117,0.32518339,2972.8,2971.3,3.38143693]
[1768960094424,3.62489494,2973.0,2971.3,3.38143693]
[1768960094624,1.29954359,2972.9,2971.3,3.38143693]
[1768960094826,0.00239882,2972.9,2971.3,3.38143693]
[1768960095826,3.28454518,2972.9,2971.3,3.38143693]
[1768960096427,0.00239882,2972.9,2971.5,3.39504704]
[1768960097222,0.00239882,2972.9,2971.5,3.56349704]
[1768960097528,3.28454518,2972.9,2971.5,1.956]
[1768960100926,3.45292518,2972.9,2971.0,0.16848]
[1768960101124,3.45292518,2972.9,2971.3,1.956]
[1768960101327,3.45292518,2972.9,2971.0,0.16848]
[1768960101523,3.28214636,2972.7,2971.1,1.956]
[1768960103735,3.28214636,2972.7,2971.1,5.35104704]
[1768960104934,3.28214636,2972.5,2971.0,2.12348]
[1768960107630,3.28214636,2972.5,2971.0,0.16848]
[1768960107830,3.28214636,2972.5,2971.0,2.12348]
[1768960108734,3.28214636,2972.5,2971.0,0.16848]
[1768960108931,3.28214636,2972.5,2971.0,1.955]
[1768960113440,3.28214636,2972.5,2971.0,5.35004704]
[1768960113939,3.28214636,2972.5,2971.1,3.39504704]
[1768960114143,3.28454518,2972.9,2971.1,3.56352704]
[1768960114639,3.28454518,2972.9,2971.2,0.16847]
[1768960114940,0.00239882,2972.9,2971.4,3.39504704]
[1768960120631,0.00239882,2972.9,2971.6,3.39504704]
[1768960120831,0.00239882,2972.9,2971.8,3.39504704]
[1768960121036,0.00239882,2972.9,2971.9,1.956]
[1768960128046,0.00239882,2972.9,2971.8,3.39504704]
[1768960128347,0.00239882,2972.9,2971.6,0.866]
[1768960128544,0.00239882,2972.9,2971.7,1.956]
[1768960129948,0.00239882,2972.9,2971.7,5.2007774]
[1768960130448,0.00239882,2972.9,2971.8,3.2447774]
[1768960132947,0.00239882,2972.9,2971.9,1.956]
[1768960139458,0.00239882,2972.9,2972.0,1.956]
[1768960141759,0.00239882,2972.9,2971.7,0.866]
[1768960141960,0.00239882,2972.9,2971.8,1.956]
[1768960142261,0.00239882,2972.9,2971.9,1.956]
[1768960143164,0.00239882,2972.9,2971.9,5.2007774]
[1768960143859,0.00239882,2972.9,2972.0,3.2447774]
[1768960144563,0.00239882,2972.9,2971.9,1.956]
[1768960146160,0.00239882,2972.9,2971.8,1.956]
[1768960149072,0.00239882,2972.9,2971.6,3.2447774]
[1768960149273,0.00239882,2972.9,2971.7,1.956]
[1768960149961,0.00239882,2972.9,2971.7,5.2007774]
[1768960150167,0.16833,2973.7,2972.3,3.2447774]
[1768960150368,1.29990428,2973.6,2972.3,3.2447774]
[1768960150568,0.32558248,2973.5,2972.3,3.2447774]
[1768960150772,3.56100206,2974.2,2972.3,3.2447774]
[1768960150968,1.29989889,2974.1,2972.3,3.2447774]
[1768960151274,3.56100206,2973.9,2972.3,3.2447774]
[1768960151475,4.86090095,2973.8,2972.3,3.2447774]
[1768960151672,1.29989889,2973.7,2972.3,3.2447774]
[1768960151871,1.29957664,2973.6,2972.3,3.2447774]
[1768960152062,0.32560193,2973.5,2972.3,3.2447774]
[1768960152269,3.56100206,2973.5,2971.9,3.2447774]
[1768960152470,3.56100206,2973.5,2972.0,1.956]
[1768960152777,4.86030665,2973.4,2971.9,3.2447774]
[1768960152973,0.32543458,2973.3,2971.9,5.2007774]
[1768960153177,1.36114578,2973.2,2971.5,3.2447774]
[1768960153478,4.86040761,2973.1,2971.6,1.956]
[1768960153678,3.56100206,2973.1,2971.6,1.956]
[1768960157988,3.40114181,2972.9,2971.2,0.866]
[1768960158282,3.40114181,2972.9,2971.1,3.22221756]
[1768960158283,3.40114181,2972.7,2971.1,3.22221756]
[1768960158485,3.40114181,2972.7,2971.1,5.17821756]
[1768960160887,3.40114181,2972.7,2971.2,3.22221756]
[1768960161781,0.16838,2972.8,2971.3,3.22221756]
[1768960162885,3.56952181,2972.8,2971.3,0.866]
[1768960163084,3.40114181,2972.7,2971.3,0.866]
[1768960163675,3.40114181,2972.7,2971.2,3.22221756]
[1768960164886,1.36087837,2972.5,2971.2,4.58309593]
[1768960165789,4.76202018,2972.7,2971.4,1.36087837]
[1768960166292,1.36087837,2972.7,2971.4,1.36087837]
[1768960167797,1.36087837,2972.7,2971.4,4.58309593]
[1768960167997,1.36087837,2972.5,2971.3,1.956]
[1768960168193,1.36087837,2972.5,2971.2,1.36087837]
[1768960168398,1.36087837,2972.5,2971.2,3.31687837]
[1768960171100,1.36087837,2972.5,2971.2,6.53909593]
[1768960171403,1.36087837,2972.5,2971.4,1.36087837]
[1768960171599,1.36087837,2972.7,2971.4,1.36087837]
[1768960176305,4.76202018,2972.7,2971.4,1.36087837]
[1768960176505,1.36087837,2972.5,2971.2,6.53909593]
[1768960178604,4.76202018,2972.7,2971.4,1.36087837]
[1768960178906,1.36087837,2972.7,2971.4,4.58309593]
[1768960183701,0.3254102,2972.6,2971.4,4.58309593]
[1768960183903,1.36087837,2972.7,2971.4,4.58309593]
[1768960184206,0.32541591,2972.6,2971.5,3.22221756]
[1768960184403,0.16838,2972.8,2971.7,4.58309593]
[1768960184702,1.52925837,2972.8,2971.7,3.22221756]
[1768960185109,1.52925837,2972.8,2971.5,1.36087837]
[1768960187302,0.32574507,2972.7,2971.5,1.36087837]
[1768960187507,1.52925837,2972.8,2971.5,1.36087837]
[1768960187712,0.32574507,2972.7,2971.5,1.36087837]
[1768960187906,1.52925837,2972.8,2971.5,1.36087837]
[1768960188106,1.30094703,2972.7,2971.5,1.36087837]
[1768960188306,1.52925837,2972.8,2971.5,1.36087837]
[1768960188506,0.32579034,2972.7,2971.5,1.36087837]
[1768960188810,1.52925837,2972.8,2971.5,1.36087837]
[1768960189110,0.32579034,2972.7,2971.5,1.36087837]
[1768960189409,1.52925837,2972.8,2971.5,1.36087837]
[1768960189608,0.32577738,2972.7,2971.5,1.36087837]
[1768960189808,1.52925837,2972.8,2971.5,1.46087837]
[1768960190003,3.40114181,2973.1,2971.8,1.36087837]
[1768960190004,1.36087837,2973.0,2971.8,1.36087837]
[1768960190309,3.40114181,2973.1,2972.0,1.36087837]
[1768960190504,3.40114181,2973.1,2971.8,1.36087837]
[1768960192511,1.52922837,2973.4,2972.0,1.36087837]
[1768960192811,1.29979029,2973.3,2972.0,1.36087837]
[1768960193012,1.29979029,2973.2,2972.0,1.36087837]
[1768960193211,1.52922837,2973.4,2972.0,1.36087837]
[1768960193400,1.29951241,2973.3,2972.0,1.36087837]
[1768960193605,1.29951241,2973.2,2972.0,1.36087837]
[1768960193807,1.52922837,2973.4,2972.0,1.36087837]
[1768960194007,1.29952771,2973.3,2972.0,1.36087837]
[1768960194208,1.29952771,2973.2,2972.0,1.36087837]
[1768960194407,0.32541973,2973.1,2972.0,1.36087837]
[1768960194610,1.52922837,2973.4,2972.0,1.36087837]
[1768960194808,1.29932803,2973.3,2972.0,1.36087837]
[1768960195007,1.29932803,2973.2,2972.0,1.36087837]
[1768960195213,0.32537377,2973.1,2972.0,1.36087837]
[1768960195512,4.82894393,2973.4,2972.0,1.36087837]
[1768960195711,1.29916216,2973.3,2972.0,1.36087837]
[1768960195913,4.82894393,2973.4,2972.0,1.36087837]
[1768960195914,1.29916216,2973.2,2972.0,1.36087837]
[1768960196115,0.32533646,2973.1,2972.0,1.36087837]
[1768960196314,4.82894393,2973.4,2972.0,1.36087837]
[1768960196514,1.29899528,2973.3,2972.0,1.36087837]
[1768960196715,1.29899528,2973.2,2972.0,1.36087837]
[1768960196909,0.32529866,2973.1,2972.0,1.36087837]
[1768960197118,4.82894393,2973.4,2972.0,1.36087837]
[1768960197416,1.29896857,2973.3,2972.0,1.36087837]
[1768960197614,1.29896857,2973.2,2972.0,1.36087837]
[1768960197812,4.82894393,2973.4,2972.0,1.36087837]
[1768960197813,0.32526211,2973.1,2972.0,1.36087837]
[1768960198015,4.82894393,2973.4,2972.0,1.36087837]
[1768960198315,1.29886025,2973.3,2972.0,1.36087837]
[1768960198510,3.29971556,2973.1,2971.8,1.36087837]
[1768960198709,1.36087837,2973.0,2971.8,1.36087837]
[1768960201214,1.36087837,2972.8,2971.6,2.22687837]
[1768960201420,4.66059393,2972.8,2971.6,0.866]
[1768960203919,1.36087837,2972.6,2971.5,0.1]
[1768960204118,3.29971556,2972.5,2971.5,0.1]
[1768960204319,1.36087837,2972.4,2971.5,0.1]
[1768960204615,4.66059393,2972.4,2971.5,0.1]
[1768960205217,3.29971556,2972.4,2971.5,0.1]
[1768960205409,0.16839,2972.7,2971.5,0.1]
[1768960206613,4.66059393,2973.2,2971.6,3.22023587]
[1768960206818,1.29886247,2973.1,2972.0,1.36087837]
[1768960207019,2.65974084,2973.0,2971.8,1.36087837]
[1768960207223,0.32527708,2972.9,2971.8,1.36087837]
[1768960207523,1.36087837,2973.0,2971.8,1.36087837]
[1768960208025,4.66059393,2973.0,2971.8,1.36087837]
[1768960210030,3.29971556,2972.9,2971.6,1.36087837]
[1768960210321,1.36087837,2972.8,2971.5,0.1]
[1768960210526,1.36087837,2973.6,2971.5,0.1]
[1768960210527,1.36087837,2972.4,2971.5,0.1]
[1768960212633,3.29971556,2972.5,2971.5,0.1]
[1768960212827,0.16838,2972.8,2971.7,1.36087837]
[1768960214324,0.32530842,2972.7,2971.7,1.36087837]
[1768960214529,0.16838,2972.8,2971.7,1.36087837]
[1768960214729,0.32530924,2972.7,2971.7,1.36087837]
[1768960214930,0.16838,2972.8,2971.7,1.36087837]
[1768960215232,0.32531285,2972.7,2971.7,1.36087837]
[1768960215432,0.16838,2972.8,2971.7,1.36087837]
[1768960215620,0.32530126,2972.7,2971.7,1.36087837]
[1768960215820,0.16838,2972.8,2971.7,1.36087837]
[1768960216031,0.32530731,2972.7,2971.7,1.36087837]
[1768960216230,0.16838,2972.8,2971.7,1.36087837]
[1768960216432,0.32529395,2972.7,2971.7,1.36087837]
[1768960216731,0.16838,2972.8,2971.7,1.36087837]
[1768960216931,0.32529395,2972.7,2971.7,1.36087837]
[1768960217133,0.16838,2972.8,2971.7,1.36087837]
[1768960217332,0.32528307,2972.7,2971.7,1.36087837]
[1768960217532,0.16838,2972.8,2971.7,1.36087837]
[1768960217726,0.32528273,2972.7,2971.7,1.36087837]
[1768960217921,0.16838,2972.8,2971.7,1.36087837]
[1768960218121,0.32528273,2972.7,2971.7,1.36087837]
[1768960218329,0.16838,2972.8,2971.7,1.36087837]
[1768960218529,0.32526993,2972.7,2971.7,1.36087837]
[1768960218724,4.47862119,2972.6,2971.5,0.1]
[1768960219026,1.36087837,2972.4,2971.5,0.1]
[1768960220435,3.11774282,2972.3,2971.5,0.1]
[1768960220639,1.36087837,2972.2,2971.5,0.1]
[1768960222630,1.36087837,2972.2,2971.5,0.00075488]
[1768960223334,3.11774282,2972.3,2971.5,0.00075488]
[1768960224532,1.36087837,2972.6,2971.5,0.00075488]
[1768960224835,3.28613282,2972.7,2971.5,1.36163325]
[1768960225033,1.29927858,2972.6,2971.5,1.36163325]
[1768960225233,3.28613282,2972.7,2971.5,1.36163325]
[1768960225439,1.2993475,2972.6,2971.5,1.36163325]
[1768960225634,4.47862119,2972.6,2971.5,0.00075488]
[1768960226140,3.11774282,2972.5,2971.5,0.00075488]
[1768960231753,0.32540132,2972.4,2971.5,0.00075488]
[1768960231939,3.11774282,2972.5,2971.5,0.00075488]
[1768960232145,3.44314502,2972.4,2971.5,0.00075488]
[1768960232452,3.11774282,2972.4,2971.5,0.00075488]
[1768960234054,3.11774282,2972.0,2970.5,0.00392585]
[1768960234250,3.12062486,2972.0,2970.5,0.00392585]
[1768960243155,3.28905486,2972.0,2970.5,0.00392585]
[1768960243756,3.11774282,2971.8,2970.5,0.00392585]
[1768960252970,2.9770318,2971.6,2970.5,0.00392585]
[1768960256268,2.9770318,2971.4,2969.9,0.866]
[1768960257276,2.9770318,2971.4,2969.9,0.87034071]
[1768960258077,2.9770318,2971.4,2969.9,0.00434071]
[1768960268886,2.9770318,2971.1,2969.9,0.00434071]
[1768960280988,2.9770318,2971.1,2969.3,0.866]
[1768960281390,2.70873872,2970.9,2969.3,0.866]
[1768960281991,2.70873872,2970.9,2969.3,0.86899612]
[1768960284891,2.70873872,2970.8,2969.3,0.86899612]
[1768960285889,2.70873872,2970.8,2969.3,0.00299612]
[1768960286897,2.87722872,2970.8,2969.3,0.00299612]
[1768960288999,4.07146359,2970.5,2969.3,0.00299612]
[1768960291202,0.16849,2970.8,2969.8,1.36272487]
[1768960292401,2.70873872,2970.9,2969.8,1.36272487]
[1768960293710,1.36272487,2970.6,2969.3,1.53430099]
[1768960293898,2.70873872,2970.5,2969.3,3.48630099]
[1768960294700,2.70873872,2970.5,2969.3,1.36572099]
[1768960295104,4.07146359,2970.4,2969.3,0.00299612]
[1768960295305,2.70873872,2970.3,2969.3,0.00299612]
[1768960296302,1.36272487,2970.6,2969.3,1.36572099]
[1768960296504,2.87723872,2970.7,2969.5,1.36272487]
[1768960300410,2.70873872,2970.7,2969.5,1.36272487]
[1768960300611,2.70873872,2970.7,2969.3,0.00299612]
[1768960300612,2.70873872,2971.1,2969.9,1.36272487]
[1768960300820,4.01204537,2971.0,2969.9,1.36272487]
[1768960301008,2.70873872,2971.0,2969.9,1.36272487]
[1768960302708,2.70873872,2971.4,2970.3,1.36272487]
[1768960303310,4.07146359,2971.4,2970.3,1.36272487]
[1768960303616,2.70873872,2971.8,2970.7,1.36272487]
[1768960304912,0.00288204,2972.0,2970.9,1.36272487]
[1768960305610,0.00288204,2972.0,2971.1,1.36272487]
[1768960307312,0.00288204,2972.0,2971.5,1.36272487]
[1768960307519,3.98786189,2973.0,2971.7,1.36272487]
[1768960308410,3.99212125,2973.0,2971.7,1.36660855]
[1768960308716,2.62939638,2973.0,2972.1,1.36272487]
[1768960308917,0.00425936,2973.0,2972.1,1.36272487]
[1768960313312,0.00425936,2973.0,2972.3,1.36272487]
[1768960314917,0.00425936,2973.0,2971.8,2.7371862]
[1768960315118,0.00425936,2973.0,2971.8,1.36272487]
[1768960315613,2.62939638,2973.0,2971.8,1.36272487]
[1768960316014,2.62939638,2973.0,2972.0,1.36272487]
[1768960319327,0.00425936,2973.0,2972.0,1.36272487]
[1768960320126,0.00425936,2973.0,2972.4,1.36272487]
[1768960320319,0.00425936,2973.0,2971.9,2.7371862]
[1768960320320,3.98786189,2973.8,2972.6,1.36272487]
[1768960320718,3.98786189,2973.8,2972.4,1.36272487]
[1768960321025,2.62513702,2973.7,2972.4,1.36272487]
[1768960321425,2.62885028,2973.7,2972.4,1.36272487]
[1768960323830,2.62513702,2973.5,2972.2,1.36272487]
[1768960324023,2.62513702,2973.5,2972.2,2.22872487]
[1768960326527,2.62513702,2973.1,2972.2,0.866]
[1768960326731,1.36272487,2972.8,2971.7,0.00388368]
[1768960326924,1.36272487,2973.6,2971.7,0.00388368]
[1768960326925,3.98786189,2972.6,2971.7,0.00388368]
[1768960327125,1.36272487,2972.4,2971.7,0.00388368]
[1768960327326,3.98786189,2972.6,2971.7,0.00388368]
[1768960328029,2.62513702,2972.6,2971.7,0.00388368]
[1768960328526,0.16837,2973.0,2972.0,1.36272487]
[1768960330226,2.62513702,2973.1,2972.0,1.36272487]
[1768960330432,1.36272487,2973.4,2972.0,1.36272487]
[1768960330637,0.97097443,2973.3,2972.0,1.36272487]
[1768960330934,3.98786189,2973.4,2972.0,1.36272487]
[1768960331133,0.97097386,2973.3,2972.0,1.36272487]
[1768960331322,0.97190283,2973.2,2972.0,1.36272487]
[1768960331528,3.98786189,2973.4,2972.0,1.36272487]
[1768960331728,0.97190283,2973.3,2972.0,1.36272487]
[1768960332031,0.97190283,2973.2,2972.0,1.36272487]
[1768960332228,3.98786189,2973.4,2972.0,1.36272487]
[1768960332535,0.97201866,2973.3,2972.0,1.36272487]
[1768960332731,0.97201866,2973.2,2972.0,1.36272487]
[1768960332927,3.98786189,2973.4,2972.0,1.36272487]
[1768960333127,0.97300113,2973.3,2972.0,1.36272487]
[1768960333328,3.98786189,2973.4,2972.2,1.36272487]
[1768960336335,0.97474233,2973.3,2972.2,1.36272487]
[1768960336525,3.98786189,2973.4,2972.2,1.36272487]
[1768960336731,0.97474299,2973.3,2972.2,1.36272487]
[1768960336935,3.98786189,2973.4,2972.2,1.36272487]
[1768960337134,1.29709676,2973.3,2972.2,1.36272487]
[1768960337334,3.98786189,2973.4,2972.2,1.36272487]
[1768960337537,1.29770837,2973.3,2972.2,1.36272487]
[1768960337734,3.98786189,2973.4,2972.2,1.36272487]
[1768960338036,0.97516401,2973.3,2972.2,1.36272487]
[1768960338232,3.98786189,2973.4,2972.2,1.36272487]
[1768960338437,0.97521151,2973.3,2972.2,1.36272487]
[1768960338637,0.97521151,2973.2,2972.2,1.36272487]
[1768960338839,3.98786189,2973.4,2972.2,1.36272487]
[1768960339138,0.97531089,2973.3,2972.2,1.36272487]
[1768960339440,3.98786189,2973.4,2972.2,1.36272487]
[1768960339639,0.00371326,2973.7,2972.6,1.36272487]
[1768960339833,0.97523218,2973.6,2972.8,1.36272487]
[1768960340133,0.00371326,2973.7,2972.8,1.36272487]
[1768960346257,0.00371326,2973.7,2973.3,1.36272487]
[1768960346549,2.60845504,2974.4,2973.3,1.36272487]
[1768960346849,0.16827,2974.8,2973.7,1.36272487]
[1768960347033,0.97359746,2974.7,2973.7,1.36272487]
[1768960347238,0.97359746,2974.6,2973.5,1.36272487]
[1768960347444,0.00372665,2974.7,2973.5,1.36272487]
[1768960348338,0.00372665,2974.7,2973.2,2.68036253]
[1768960348339,0.00372665,2974.7,2973.7,1.36272487]
[1768960348943,0.00372665,2974.7,2973.3,1.35865123]
[1768960352241,0.00372665,2974.7,2973.7,4.03901376]
[1768960352548,2.60845504,2975.7,2973.8,2.68036253]
[1768960352748,3.57960374,2975.6,2973.8,2.68036253]
[1768960352947,0.9711487,2975.5,2973.8,2.68036253]
[1768960353550,2.60845504,2975.4,2973.8,2.68471748]
[1768960354758,0.00278882,2975.5,2973.8,2.68471748]
[1768960355046,0.00278882,2975.5,2973.8,2.85303748]
[1768960355250,0.00278882,2975.5,2974.0,2.68036253]
[1768960355550,0.00278882,2975.5,2974.0,2.84867253]
[1768960356952,2.61124386,2975.5,2973.8,0.00435495]
[1768960358252,0.00278882,2975.5,2973.8,2.85303748]
[1768960359341,0.00278882,2975.5,2974.0,2.68036253]
[1768960360255,2.61124386,2975.5,2974.1,1.947]
[1768960361253,2.61124386,2975.5,2974.0,2.68036253]
[1768960364353,2.61124386,2975.5,2973.8,1.95135495]
[1768960365157,2.61124386,2975.5,2973.8,0.87035495]
[1768960366559,2.77318624,2975.3,2973.8,0.87035495]
[1768960367355,2.94142624,2975.3,2973.8,0.00435495]
[1768960372960,2.77318624,2974.9,2973.8,0.00435495]
[1768960373858,2.94144624,2974.9,2973.8,0.00435495]
[1768960374262,2.77318624,2975.3,2973.8,0.00435495]
[1768960374559,2.77318624,2975.3,2973.8,2.54805729]
[1768960374765,0.17101882,2975.5,2973.8,2.54805729]
[1768960374968,0.17101882,2975.5,2973.8,3.90669594]
[1768960375159,2.94420506,2975.5,2973.8,3.90669594]
[1768960376167,0.97310318,2975.4,2973.8,3.90669594]
[1768960376367,2.94420506,2975.5,2973.8,3.90669594]
[1768960376560,3.74628934,2975.4,2973.8,3.90669594]
[1768960376764,2.77318624,2975.4,2973.8,3.90669594]
[1768960378267,0.9734862,2975.3,2973.8,3.90669594]
[1768960378468,2.77318624,2975.4,2973.8,3.90669594]
[1768960378669,0.97348688,2975.3,2973.8,3.90669594]
[1768960378969,2.77318624,2975.4,2973.8,3.90669594]
[1768960379168,0.97348688,2975.3,2973.8,3.90669594]
[1768960379367,2.77318624,2975.4,2973.8,3.90669594]
[1768960379569,0.97364929,2975.3,2973.8,3.90669594]
[1768960379774,2.77318624,2975.4,2973.8,4.77269594]
[1768960380070,0.97364928,2975.3,2973.8,4.77269594]
[1768960380370,2.77318624,2975.4,2973.8,4.77269594]
[1768960380563,0.97382604,2975.3,2973.8,4.77269594]
[1768960380764,2.77318624,2975.4,2973.8,4.77269594]
[1768960381064,0.97382507,2975.3,2973.8,4.77269594]
[1768960381272,2.77318624,2975.4,2973.8,4.77269594]
[1768960381459,2.94144624,2975.0,2973.8,0.87035495]
[1768960381664,2.94144624,2975.0,2973.8,0.00435495]
[1768960382267,2.77318624,2974.8,2973.8,0.00435495]
[1768960383767,2.77318624,2974.8,2972.5,7.58076312]
[1768960383768,2.94146624,2974.6,2972.6,3.40970234]
[1768960383969,2.77318624,2974.4,2972.7,0.866]
[1768960384169,2.77318624,2974.4,2972.6,4.48970234]
[1768960384170,2.77318624,2974.4,2972.6,5.35570234]
[1768960384972,2.77318624,2974.4,2972.6,2.54710798]
[1768960385178,2.77318624,2974.1,2972.6,0.00340564]
[1768960385478,2.94149624,2974.1,2972.6,0.00340564]
[1768960395689,2.68220266,2973.9,2972.6,0.00340564]
[1768960397695,2.68220266,2973.7,2972.6,0.00340564]
[1768960402891,0.16834,2973.6,2972.6,0.00340564]
[1768960403092,2.68220266,2973.5,2972.6,0.00340564]
[1768960403291,2.68220266,2973.5,2971.9,0.866]
[1768960403493,2.85054266,2973.5,2971.9,0.866]
[1768960403794,2.68220266,2973.5,2971.9,0.866]
[1768960404195,2.68220266,2973.5,2971.9,0.8693414]
[1768960404697,2.68220266,2973.3,2971.9,0.8693414]
[1768960404893,2.68488096,2973.3,2971.9,0.8693414]
[1768960407299,0.0026783,2973.3,2972.0,2.68793092]
[1768960408888,0.0026783,2973.3,2972.4,1.35989052]
[1768960412903,0.0026783,2973.3,2972.2,1.35989052]
[1768960415397,4.04209318,2973.2,2972.0,1.35989052]
[1768960415602,4.04209318,2973.2,2971.9,0.8693414]
[1768960415801,2.68220266,2973.2,2972.0,1.35989052]
[1768960416000,2.68220266,2973.2,2972.2,1.35989052]
[1768960416202,2.68220266,2973.2,2972.4,1.35989052]
[1768960416706,4.04209318,2973.2,2972.0,1.35989052]
[1768960417097,2.68220266,2973.2,2972.0,1.35989052]
[1768960417810,0.0026783,2973.3,2971.9,0.8693414]
[1768960417811,1.35989052,2972.4,2971.9,0.0033414]
[1768960417994,1.35989052,2972.6,2971.9,0.0033414]
[1768960418398,4.04209318,2972.4,2971.0,1.35989052]
[1768960418707,1.35989052,2972.2,2971.0,1.35989052]
[1768960419406,1.35989052,2972.2,2971.0,1.36252603]
[1768960423507,0.16839,2972.7,2971.8,1.35989052]
[1768960423803,0.16839,2972.7,2971.4,1.35989052]
[1768960427212,1.35989052,2972.6,2971.4,1.35989052]
[1768960430409,0.16839,2972.7,2971.4,1.35989052]
[1768960430612,0.16839,2972.7,2971.6,1.35989052]
[1768960433013,0.16839,2972.7,2971.4,1.35989052]
[1768960439417,1.35989052,2972.6,2971.4,1.35989052]
[1768960441613,1.35989052,2972.2,2971.3,0.866]
[1768960445523,2.55337977,2972.3,2971.3,0.866]
[1768960447023,2.55337977,2972.3,2971.0,1.36252603]
[1768960451525,1.35989052,2972.2,2971.0,1.36252603]
[1768960453528,3.91327029,2972.2,2971.0,1.36252603]
[1768960453725,1.35989052,2972.0,2971.0,0.00263551]
[1768960454117,1.35989052,2971.6,2971.0,0.00263551]
[1768960454321,1.35989052,2971.4,2970.4,2.56763826]
[1768960454523,1.35989052,2971.6,2970.4,2.56763826]
[1768960455429,1.35989052,2971.6,2970.4,0.00384327]
[1768960455825,1.35989052,2971.4,2970.4,0.00384327]
[1768960470935,2.47402049,2971.5,2970.4,0.00384327]
[1768960471732,2.47402049,2971.8,2970.4,0.00384327]
[1768960478842,2.47402049,2971.8,2970.4,3.90524173]
[1768960479046,2.47402049,2971.8,2970.4,0.00384327]
[1768960479242,3.83586241,2971.8,2970.4,0.00384327]
[1768960479445,2.52030982,2971.7,2970.4,0.00384327]
[1768960480144,2.68876982,2971.4,2969.7,2.53955654]
[1768960480453,2.52030982,2971.2,2969.5,0.16857]
[1768960481235,2.52338213,2971.2,2969.5,0.17226538]
[1768960482453,2.52338213,2971.2,2969.5,4.07366384]
[1768960482749,2.52338213,2971.2,2969.6,2.53955654]
[1768960484044,2.52338213,2971.2,2969.5,1.5341073]
[1768960484552,2.52338213,2971.2,2969.5,0.17226538]
[1768960488361,3.88522405,2971.2,2969.5,0.17226538]
[1768960488553,2.65544016,2971.1,2969.5,0.17226538]
[1768960488853,2.65544016,2970.9,2969.5,0.00369538]
[1768960489061,2.65544016,2970.6,2969.5,0.00369538]
[1768960506469,2.65544016,2969.9,2968.7,0.866]
[1768960506765,2.65544016,2969.9,2968.4,0.16863]
[1768960507170,2.65544016,2969.9,2968.0,3.87774168]
[1768960507670,2.65544016,2969.6,2968.0,0.00276829]
[1768960508169,2.82400016,2969.6,2968.0,0.00276829]
[1768960508380,2.65544016,2969.3,2968.0,0.00276829]
[1768960521190,3.26584192,2969.7,2968.1,2.67709246]
[1768960521191,2.47026664,2969.7,2968.1,2.67709246]
[1768960522597,2.47026664,2969.7,2968.2,0.866]
[1768960522795,2.63879664,2970.1,2968.4,2.67709246]
[1768960523094,2.63879664,2970.1,2968.5,2.67709246]
[1768960523291,2.47026664,2970.1,2968.6,0.866]
[1768960523495,2.47026664,2970.1,2968.8,2.67709246]
[1768960524996,2.47026664,2970.1,2968.7,0.16861]
[1768960529101,2.47026664,2970.1,2968.7,1.03461]
[1768960529798,2.47026664,2970.1,2968.7,0.866]
[1768960530888,2.63881664,2969.9,2968.1,0.16865]